lending/lending_fUSD_20240621
["ID","MTS","AMOUNT","RATE_DAILY","PERIOD"]
[330106292,1718992256293,-500.0,0.00022465,4]
[330106293,1718992256302,-500.0,0.00022465,4]
[330106294,1718992256311,-500.0,0.00022465,4]
[330106295,1718992256321,-500.0,0.00022465,4]
[330106296,1718992256330,-500.0,0.00022465,4]
[330106297,1718992256339,-500.0,0.00022465,4]
[330106298,1718992256348,-500.0,0.00022465,4]
[330106299,1718992256357,-232.21747522,0.00022465,4]
[330106300,1718992256369,-267.78252478,0.00022465,4]
[330106301,1718992256378,-806.36,0.00022465,4]
[330106302,1718992256388,-500.0,0.00022465,4]
[330106303,1718992256397,-500.0,0.00022465,4]
[330106304,1718992256406,-368.66415222,0.00022465,4]
[330106305,1718992256418,-131.33584778,0.00022465,4]
[330106306,1718992256427,-708.12,0.00022465,4]
[330106307,1718992256437,-500.0,0.00022465,4]
[330106308,1718992256447,-500.0,0.00022465,4]
[330106309,1718992256456,-500.0,0.00022465,4]
[330106310,1718992256466,-500.0,0.00022465,4]
[330106311,1718992256475,-97.78616804,0.00022465,4]
[330106312,1718992256488,-402.21383196,0.00022465,4]
[330106313,1718992256498,-500.0,0.00022465,4]
[330106314,1718992256507,-984.85,0.00022465,4]
[330106315,1718992256516,-500.0,0.00022465,4]
[330106316,1718992256527,-500.0,0.00022465,4]
[330106317,1718992256538,-500.0,0.00022465,4]
[330106318,1718992256547,-500.0,0.00022465,4]
[330106319,1718992256556,-1370.5,0.00022465,4]
[330106320,1718992256566,-500.0,0.00022465,4]
[330106321,1718992256576,-805.62,0.00022465,4]
[330106322,1718992256586,-295.6759281,0.00022465,4]
[330106323,1718992256595,-500.0,0.00022465,4]
[330106324,1718992256604,-500.0,0.00022465,4]
[330106325,1718992256614,-500.0,0.00022465,4]
[330106326,1718992256623,-512.34,0.00022465,4]
[330106327,1718992256633,-500.0,0.00022465,4]
[330106328,1718992256642,-561.33,0.00022465,4]
[330106329,1718992256652,-521.21,0.00022465,4]
[330106330,1718992256662,-528.06,0.00022465,4]
[330106331,1718992256672,-500.0,0.00022465,4]
[330106332,1718992256686,-500.0,0.00022465,4]
[330106333,1718992256705,-772.94,0.00022465,4]
[330106334,1718992256726,-500.0,0.00022465,4]
[330106335,1718992256758,-500.0,0.00022465,4]
[330106336,1718992256785,-500.0,0.00022465,4]
[330106337,1718992256814,-759.88,0.00022465,4]
[330106338,1718992256837,-500.0,0.00022465,4]
[330106339,1718992256860,-500.0,0.00022465,4]
[330106340,1718992256883,-500.0,0.00022465,4]
[330106341,1718992256904,-500.0,0.00022465,4]
[330106342,1718992256919,-500.0,0.00022465,4]
[330106343,1718992256928,-500.0,0.00022465,4]
[330106344,1718992256937,-500.0,0.00022465,4]
[330106345,1718992256948,-500.0,0.00022465,4]
[330106346,1718992256958,-500.0,0.00022465,4]
[330106347,1718992256967,-500.0,0.00022465,4]
[330106348,1718992256976,-500.0,0.00022465,4]
[330106349,1718992256986,-500.0,0.00022465,4]
[330106350,1718992256995,-500.0,0.00022465,4]
[330106351,1718992257005,-3195.43,0.00022465,4]
[330106352,1718992257014,-500.0,0.00022465,4]
[330106353,1718992257024,-500.0,0.00022465,4]
[330106354,1718992257033,-500.0,0.00022465,4]
[330106355,1718992257042,-1744.73,0.00022465,4]
[330106356,1718992257051,-915.56,0.00022465,4]
[330106357,1718992257061,-500.0,0.00022465,4]
[330106358,1718992257070,-647.54,0.00022465,4]
[330106359,1718992257079,-1204.8,0.00022465,4]
[330106360,1718992257088,-500.0,0.00022465,4]
[330106361,1718992257097,-35.28023994,0.00022465,4]
[330106362,1718992257111,-1585.77976006,0.00022465,4]
[330106363,1718992257120,-500.0,0.00022465,4]
[330106364,1718992257129,-500.0,0.00022465,4]
[330106365,1718992257139,-630.74,0.00022465,4]
[330106366,1718992257148,-500.0,0.00022465,4]
[330106367,1718992257157,-3472.97,0.00022465,4]
[330106368,1718992257166,-500.0,0.00022465,4]
[330106369,1718992257176,-6117.66,0.00022465,4]
[330106370,1718992257186,-816.52,0.00022465,4]
[330106371,1718992257195,-1650.05,0.00022465,4]
[330106372,1718992257205,-500.0,0.00022465,4]
[330106373,1718992257214,-500.0,0.00022465,4]
[330106374,1718992257224,-500.0,0.00022465,4]
[330106375,1718992257234,-500.0,0.00022465,4]
[330106376,1718992257243,-500.0,0.00022465,4]
[330106377,1718992257252,-388.23145716,0.00022465,4]
[330106378,1718992257261,-1707.93,0.00022465,4]
[330106379,1718992257270,-1761.29,0.00022465,4]
[330106380,1718992257279,-500.0,0.00022465,4]
[330106381,1718992257288,-500.0,0.00022465,4]
[330106382,1718992257298,-500.0,0.00022465,4]
[330106383,1718992257308,-500.0,0.00022465,4]
[330106384,1718992257317,-500.0,0.00022465,4]
[330106385,1718992257326,-26496.33,0.00022465,4]
[330106386,1718992257336,-505.30687812,0.00022465,4]
[330106387,1718992257348,-356.96312188,0.00022465,4]
[330106388,1718992257358,-40.66786199,0.00022465,4]
[330106389,1718992258035,-384.14138485,0.00014713,2]
[330106390,1718992258048,-142.45882906,0.00014713,2]
[330106391,1718992258058,-148.8529358,0.00021917,4]
[330106392,1718992258079,-351.1470642,0.00021917,4]
[330106393,1718992258089,-500.0,0.00021917,4]
[330106394,1718992258099,-500.0,0.00022191,4]
[330106395,1718992258109,-459.33213801,0.00022465,4]
[330106396,1718992258119,-170.75341941,0.00022465,4]
[330106397,1718992258129,-500.0,0.00022465,4]
[330106398,1718992258138,-500.0,0.00022465,4]
[330106399,1718992258148,-500.0,0.00022465,4]
[330106400,1718992258158,-500.0,0.00022465,4]
[330106401,1718992258168,-500.0,0.00022465,4]
[330106402,1718992258178,-500.0,0.00022465,4]
[330106403,1718992258188,-1005.33,0.00022465,4]
[330106404,1718992258197,-500.0,0.00022465,4]
[330106405,1718992258207,-599.04518552,0.00022465,4]
[330106406,1718992258216,-500.0,0.00022465,4]
[330106407,1718992258226,-5294.03,0.00022465,4]
[330106408,1718992258235,-500.0,0.00022465,4]
[330106409,1718992258245,-500.0,0.00022465,4]
[330106410,1718992258254,-500.0,0.00022465,4]
[330106411,1718992258264,-855.86,0.00022465,4]
[330106412,1718992258274,-500.0,0.00022465,4]
[330106413,1718992258284,-500.0,0.00022465,4]
[330106414,1718992258295,-5138.4,0.00022465,4]
[330106415,1718992258304,-500.0,0.00022465,4]
[330106416,1718992258314,-500.0,0.00022465,4]
[330106417,1718992258324,-500.0,0.00022465,4]
[330106418,1718992258333,-500.0,0.00022465,4]
[330106419,1718992258343,-500.0,0.00022465,4]
[330106420,1718992258353,-500.0,0.00022465,4]
[330106421,1718992258368,-500.0,0.00022465,4]
[330106422,1718992258377,-500.0,0.00022465,4]
[330106423,1718992258387,-500.0,0.00022465,4]
[330106424,1718992258397,-500.0,0.00022465,4]
[330106425,1718992258407,-500.0,0.00022465,4]
[330106426,1718992258417,-1685.77,0.00022465,4]
[330106427,1718992258427,-500.0,0.00022465,4]
[330106428,1718992258436,-500.0,0.00022465,4]
[330106429,1718992258446,-500.0,0.00022465,4]
[330106430,1718992258455,-3862.54,0.00022465,4]
[330106431,1718992258465,-500.0,0.00022465,4]
[330106432,1718992258475,-500.0,0.00022465,4]
[330106433,1718992258485,-500.0,0.00022465,4]
[330106434,1718992258494,-500.0,0.00022465,4]
[330106435,1718992258503,-708.95,0.00022465,4]
[330106436,1718992258518,-995.76,0.00022465,4]
[330106437,1718992258527,-1366.91,0.00022465,4]
[330106438,1718992258537,-500.0,0.00022465,4]
[330106439,1718992258547,-500.0,0.00022465,4]
[330106440,1718992258557,-3483.41,0.00022465,4]
[330106441,1718992258566,-500.0,0.00022465,4]
[330106442,1718992258576,-1171.77,0.00022465,4]
[330106443,1718992258585,-500.0,0.00022465,4]
[330106444,1718992258595,-500.0,0.00022465,4]
[330106445,1718992258605,-500.0,0.00022465,4]
[330106446,1718992258626,-500.0,0.00022465,4]
[330106447,1718992258645,-500.0,0.00022465,4]
[330106448,1718992258666,-500.0,0.00022465,4]
[330106449,1718992258687,-3846.37,0.00022465,4]
[330106450,1718992258709,-550.95,0.00022465,4]
[330106451,1718992258734,-3382.6,0.00022465,4]
[330106452,1718992258754,-500.0,0.00022465,4]
[330106453,1718992258776,-500.0,0.00022465,4]
[330106454,1718992258796,-500.0,0.00022465,4]
[330106455,1718992258818,-936.89,0.00022465,4]
[330106456,1718992258839,-615.29,0.00022465,4]
[330106457,1718992258849,-500.0,0.00022465,4]
[330106458,1718992258859,-1374.75,0.00022465,4]
[330106459,1718992258869,-500.0,0.00022465,4]
[330106460,1718992258878,-500.0,0.00022465,4]
[330106461,1718992258888,-2137.91,0.00022465,4]
[330106462,1718992258900,-500.0,0.00022465,4]
[330106463,1718992258911,-2106.23219286,0.00022465,4]
[330106464,1718992258925,-1695.65780714,0.00022465,4]
[330106465,1718992258936,-500.0,0.00022465,4]
[330106466,1718992258947,-500.0,0.00022465,4]
[330106467,1718992258956,-500.0,0.00022465,4]
[330106468,1718992258966,-1524.53,0.00022465,4]
[330106469,1718992258976,-1423.27,0.00022465,4]
[330106470,1718992258989,-408.27791934,0.00022465,4]
[330106471,1718992259002,-91.72208066,0.00022465,4]
[330106472,1718992259012,-359.77791934,0.00022465,4]
[330106473,1718992259024,-140.22208066,0.00022465,4]
[330106474,1718992259034,-500.0,0.00022465,4]
[330106475,1718992259043,-1943.04,0.00022465,4]
[330106476,1718992259053,-500.0,0.00022465,4]
[330106477,1718992259062,-500.0,0.00022465,4]
[330106478,1718992259072,-500.0,0.00022465,4]
[330106479,1718992259081,-500.0,0.00022465,4]
[330106480,1718992259091,-500.0,0.00022465,4]
[330106481,1718992259102,-897.0,0.00022465,4]
[330106482,1718992259112,-500.0,0.00022465,4]
[330106483,1718992259121,-500.0,0.00022465,4]
[330106484,1718992259130,-2330.65,0.00022465,4]
[330106485,1718992259140,-500.0,0.00022465,4]
[330106486,1718992259150,-3874.31,0.00022465,4]
[330106487,1718992259160,-500.0,0.00022465,4]
[330106488,1718992259169,-1351.21,0.00022465,4]
[330106489,1718992259179,-4893.62,0.00022465,4]
[330106490,1718992259188,-500.0,0.00022465,4]
[330106491,1718992259198,-1631.52,0.00022465,4]
[330106492,1718992259208,-500.0,0.00022465,4]
[330106493,1718992259217,-500.0,0.00022465,4]
[330106494,1718992259227,-950.2,0.00022465,4]
[330106495,1718992259236,-5260.92,0.00022465,4]
[330106496,1718992259247,-500.0,0.00022465,4]
[330106497,1718992259256,-194.27740731,0.00022465,4]
[330106498,1718992259266,-500.0,0.00022465,4]
[330106499,1718992259276,-228.74,0.00022465,4]
[330106500,1718992259286,-500.0,0.00022465,4]
[330106501,1718992259296,-500.0,0.00022465,4]
[330106502,1718992259305,-1896.66,0.00022465,4]
[330106503,1718992259316,-3308.53,0.00022465,4]
[330106504,1718992259325,-500.0,0.00022465,4]
[330106505,1718992259336,-500.0,0.00022465,4]
[330106506,1718992259345,-500.0,0.00022465,4]
[330106507,1718992259355,-500.0,0.00022465,4]
[330106508,1718992259365,-500.0,0.00022465,4]
[330106509,1718992259375,-500.0,0.00022465,4]
[330106510,1718992259385,-500.0,0.00022465,4]
[330106511,1718992259395,-2284.32,0.00022465,4]
[330106512,1718992259405,-500.0,0.00022465,4]
[330106513,1718992259415,-945.74,0.00022465,4]
[330106514,1718992259425,-500.0,0.00022465,4]
[330106515,1718992259434,-500.0,0.00022465,4]
[330106516,1718992259444,-500.0,0.00022465,4]
[330106517,1718992259454,-500.0,0.00022465,4]
[330106518,1718992259463,-500.0,0.00022465,4]
[330106519,1718992259473,-500.0,0.00022465,4]
[330106520,1718992259483,-1367.43,0.00022465,4]
[330106521,1718992259493,-271.00979729,0.00022465,4]
[330106522,1718992259506,-228.99020271,0.00022465,4]
[330106523,1718992259516,-500.0,0.00022465,4]
[330106524,1718992259525,-1765.58,0.00022465,4]
[330106525,1718992259535,-500.0,0.00022465,4]
[330106526,1718992259545,-440.22627482,0.00022465,4]
[330106527,1718992259557,-1058.01372518,0.00022465,4]
[330106528,1718992259567,-500.0,0.00022465,4]
[330106529,1718992259577,-1289.57896478,0.00022465,4]
[330106530,1718992259689,-500.0,0.00022191,4]
[330106531,1718992259700,-1070.55517767,0.00022465,4]
[330106532,1718992259758,-22.11723656,0.00022465,4]
[330106533,1718992259771,-3201.6405,0.00022465,4]
[330106534,1718992259782,-623.72812099,0.00022465,4]
[330106535,1718992259792,-39.90633021,0.00022465,4]
[330106536,1718992261059,-283.44364674,0.00013498,2]
[330106537,1718992261069,-526.60021389,0.00015621,2]
[330106538,1718992261078,-411.00191211,0.00021813,2]
[330106539,1718992261095,-1247.85859642,0.00021813,2]
[330106540,1718992261104,-460.09366979,0.00022465,4]
[330106541,1718992261114,-2564.46,0.00022465,4]
[330106542,1718992261124,-502.62,0.00022465,4]
[330106543,1718992261133,-500.0,0.00022465,4]
[330106544,1718992261143,-2101.93,0.00022465,4]
[330106545,1718992261152,-500.0,0.00022465,4]
[330106546,1718992261161,-500.0,0.00022465,4]
[330106547,1718992261170,-500.0,0.00022465,4]
[330106548,1718992261179,-2743.19,0.00022465,4]
[330106549,1718992261189,-500.0,0.00022465,4]
[330106550,1718992261198,-500.0,0.00022465,4]
[330106551,1718992261207,-500.0,0.00022465,4]
[330106552,1718992261217,-842.87,0.00022465,4]
[330106553,1718992261226,-500.0,0.00022465,4]
[330106554,1718992261239,-500.0,0.00022465,4]
[330106555,1718992261249,-500.0,0.00022465,4]
[330106556,1718992261258,-561.89,0.00022465,4]
[330106557,1718992261267,-734.12,0.00022465,4]
[330106558,1718992261277,-500.0,0.00022465,4]
[330106559,1718992261286,-1061.85,0.00022465,4]
[330106560,1718992261296,-500.0,0.00022465,4]
[330106561,1718992261306,-958.21,0.00022465,4]
[330106562,1718992261315,-500.0,0.00022465,4]
[330106563,1718992261325,-500.0,0.00022465,4]
[330106564,1718992261334,-500.0,0.00022465,4]
[330106565,1718992261344,-1866.18,0.00022465,4]
[330106566,1718992261354,-500.0,0.00022465,4]
[330106567,1718992261363,-500.0,0.00022465,4]
[330106568,1718992261372,-500.0,0.00022465,4]
[330106569,1718992261382,-500.0,0.00022465,4]
[330106570,1718992261391,-500.0,0.00022465,4]
[330106571,1718992261401,-785.68,0.00022465,4]
[330106572,1718992261410,-500.0,0.00022465,4]
[330106573,1718992261420,-500.0,0.00022465,4]
[330106574,1718992261430,-500.0,0.00022465,4]
[330106575,1718992261439,-500.0,0.00022465,4]
[330106576,1718992261449,-500.0,0.00022465,4]
[330106577,1718992261458,-500.0,0.00022465,4]
[330106578,1718992261468,-500.0,0.00022465,4]
[330106579,1718992261478,-500.0,0.00022465,4]
[330106580,1718992261493,-500.0,0.00022465,4]
[330106581,1718992261503,-500.0,0.00022465,4]
[330106582,1718992261515,-271.56576084,0.00022473,2]
[330106583,1718992261524,-44.68257897,0.00022475,2]
[330106584,1718992261537,-128.03077075,0.00022475,2]
[330106585,1718992261547,-159.30477227,0.00022479,2]
[330106586,1718992261556,-118.60528973,0.000225,5]
[330106587,1718992261568,-8457.22941773,0.000225,5]
[330106588,1718992261579,-1396.7364109,0.000225,5]
[330106589,1718992261590,-549.65353905,0.000225,5]
[330106590,1718992261599,-181.438469,0.00022521,2]
[330106591,1718992261609,-146.46280995,0.00022521,2]
[330106592,1718992261621,-37.29226005,0.00022521,2]
[330106593,1718992261630,-772.39718995,0.00022521,2]
[330106594,1718992261644,-5342.92819605,0.00022521,2]
[330106595,1718992261654,-211.996297,0.00022521,2]
[330106596,1718992261664,-6360.105301,0.00022521,2]
[330106597,1718992261674,-11315.47936,0.00022521,2]
[330106598,1718992261684,-159.30477227,0.00022559,2]
[330106599,1718992261693,-171.38516497,0.00022575,2]
[330106600,1718992261703,-500.0,0.00022626,2]
[330106601,1718992261713,-245.9569691,0.00022639,2]
[330106602,1718992261723,-159.30477227,0.00022639,2]
[330106603,1718992261735,-327.03214884,0.00022667,2]
[330106604,1718992261745,-271.56576084,0.00022676,2]
[330106605,1718992261755,-500.0,0.00022716,4]
[330106606,1718992261766,-500.0,0.00022718,4]
[330106607,1718992261775,-544.91,0.00022718,4]
[330106608,1718992261784,-500.0,0.00022718,4]
[330106609,1718992261794,-500.0,0.00022718,4]
[330106610,1718992261803,-500.0,0.00022718,4]
[330106611,1718992261813,-500.0,0.00022718,4]
[330106612,1718992261822,-500.0,0.00022718,4]
[330106613,1718992261831,-500.0,0.00022718,4]
[330106614,1718992261840,-500.0,0.00022718,4]
[330106615,1718992261850,-253.51,0.00022718,7]
[330106616,1718992261860,-500.0,0.00022718,4]
[330106617,1718992261870,-500.0,0.00022718,4]
[330106618,1718992261880,-500.0,0.00022718,4]
[330106619,1718992261889,-500.0,0.00022718,4]
[330106620,1718992261899,-500.0,0.00022718,4]
[330106621,1718992261914,-502.34,0.00022718,4]
[330106622,1718992261924,-500.0,0.00022718,4]
[330106623,1718992261934,-500.0,0.00022718,4]
[330106624,1718992261944,-500.0,0.00022718,4]
[330106625,1718992261954,-500.0,0.00022718,4]
[330106626,1718992261964,-646.98,0.00022718,4]
[330106627,1718992261974,-695.36,0.00022718,4]
[330106628,1718992261988,-500.0,0.00022718,4]
[330106629,1718992261997,-561.23261941,0.00022718,4]
[330106630,1718992262006,-408.36992409,0.00022718,4]
[330106631,1718992262015,-500.0,0.00022718,4]
[330106632,1718992262025,-652.38,0.00022718,4]
[330106633,1718992262034,-500.0,0.00022718,4]
[330106634,1718992262044,-710.19,0.00022718,4]
[330106635,1718992262054,-530.88,0.00022718,4]
[330106636,1718992262064,-816.1,0.00022718,4]
[330106637,1718992262074,-500.0,0.00022718,4]
[330106638,1718992262084,-500.0,0.00022718,4]
[330106639,1718992262093,-500.0,0.00022718,4]
[330106640,1718992262103,-500.0,0.00022718,4]
[330106641,1718992262113,-500.0,0.00022718,4]
[330106642,1718992262122,-500.0,0.00022718,4]
[330106643,1718992262132,-500.0,0.00022718,4]
[330106644,1718992262141,-500.0,0.00022718,4]
[330106645,1718992262150,-500.0,0.00022718,4]
[330106646,1718992262160,-500.0,0.00022718,4]
[330106647,1718992262169,-500.0,0.00022718,4]
[330106648,1718992262179,-898.87,0.00022718,4]
[330106649,1718992262189,-500.0,0.00022718,4]
[330106650,1718992262198,-500.0,0.00022718,4]
[330106651,1718992262208,-500.0,0.00022718,4]
[330106652,1718992262218,-500.0,0.00022718,4]
[330106653,1718992262228,-500.0,0.00022718,4]
[330106654,1718992262239,-500.0,0.00022718,4]
[330106655,1718992262249,-500.0,0.00022718,4]
[330106656,1718992262258,-500.0,0.00022718,4]
[330106657,1718992262268,-512.11228329,0.00022718,4]
[330106658,1718992262277,-500.0,0.00022718,4]
[330106659,1718992262287,-500.0,0.00022718,4]
[330106660,1718992262297,-500.0,0.00022718,4]
[330106661,1718992262306,-627.65,0.00022718,4]
[330106662,1718992262315,-500.0,0.00022718,4]
[330106663,1718992262324,-597.69,0.00022718,4]
[330106664,1718992262333,-500.0,0.00022718,4]
[330106665,1718992262343,-500.0,0.00022718,4]
[330106666,1718992262352,-500.0,0.00022718,4]
[330106667,1718992262361,-500.0,0.00022718,4]
[330106668,1718992262370,-500.0,0.00022718,4]
[330106669,1718992262380,-500.0,0.00022718,4]
[330106670,1718992262389,-500.0,0.00022718,4]
[330106671,1718992262399,-500.0,0.00022718,4]
[330106672,1718992262408,-500.0,0.00022718,4]
[330106673,1718992262418,-796.49,0.00022718,4]
[330106674,1718992262427,-500.0,0.00022718,4]
[330106675,1718992262436,-179.02480583,0.00022718,4]
[330106676,1718992262446,-500.0,0.00022718,4]
[330106677,1718992262455,-500.0,0.00022718,4]
[330106678,1718992262465,-500.0,0.00022718,4]
[330106679,1718992262474,-500.0,0.00022718,4]
[330106680,1718992262483,-500.0,0.00022718,4]
[330106681,1718992262493,-500.0,0.00022718,4]
[330106682,1718992262502,-500.0,0.00022718,4]
[330106683,1718992262511,-563.4,0.00022718,4]
[330106684,1718992262520,-500.0,0.00022718,4]
[330106685,1718992262530,-500.0,0.00022718,4]
[330106686,1718992262539,-500.0,0.00022718,4]
[330106687,1718992262549,-500.0,0.00022718,4]
[330106688,1718992262558,-500.0,0.00022718,4]
[330106689,1718992262569,-500.0,0.00022718,4]
[330106690,1718992262579,-500.0,0.00022718,4]
[330106691,1718992262589,-500.0,0.00022718,4]
[330106692,1718992262599,-500.0,0.00022718,4]
[330106693,1718992262608,-500.0,0.00022718,4]
[330106694,1718992262618,-500.0,0.00022718,4]
[330106695,1718992262627,-500.0,0.00022718,4]
[330106696,1718992262636,-500.0,0.00022718,4]
[330106697,1718992262645,-500.0,0.00022718,4]
[330106698,1718992262655,-195.68269582,0.00022718,4]
[330106699,1718992262664,-500.0,0.00022718,4]
[330106700,1718992262673,-500.0,0.00022718,4]
[330106701,1718992262683,-500.0,0.00022718,4]
[330106702,1718992262692,-500.0,0.00022718,4]
[330106703,1718992262701,-500.0,0.00022718,4]
[330106704,1718992262711,-500.0,0.00022718,4]
[330106705,1718992262721,-500.0,0.00022718,4]
[330106706,1718992262730,-500.0,0.00022718,4]
[330106707,1718992262740,-500.0,0.00022718,4]
[330106708,1718992262750,-500.0,0.00022718,4]
[330106709,1718992262759,-500.0,0.00022718,4]
[330106710,1718992262769,-500.0,0.00022718,4]
[330106711,1718992262778,-500.0,0.00022718,4]
[330106712,1718992262788,-500.0,0.00022718,4]
[330106713,1718992262797,-500.0,0.00022718,4]
[330106714,1718992262807,-500.0,0.00022718,4]
[330106715,1718992262816,-500.0,0.00022718,4]
[330106716,1718992262825,-500.0,0.00022718,4]
[330106717,1718992262898,-500.0,0.00022718,4]
[330106718,1718992262912,-500.0,0.00022718,4]
[330106719,1718992262922,-500.0,0.00022718,4]
[330106720,1718992262931,-500.0,0.00022718,4]
[330106721,1718992262941,-500.0,0.00022718,4]
[330106722,1718992262951,-500.0,0.00022718,4]
[330106723,1718992262962,-500.0,0.00022718,4]
[330106724,1718992262971,-500.0,0.00022718,4]
[330106725,1718992262983,-500.0,0.00022718,4]
[330106726,1718992262995,-500.0,0.00022718,4]
[330106727,1718992263004,-500.0,0.00022718,4]
[330106728,1718992263013,-500.0,0.00022718,4]
[330106729,1718992263023,-500.0,0.00022718,4]
[330106730,1718992263032,-500.0,0.00022718,4]
[330106731,1718992263041,-500.0,0.00022718,4]
[330106732,1718992263051,-500.0,0.00022718,4]
[330106733,1718992263062,-370.11456504,0.00022718,4]
[330106734,1718992263072,-622.13,0.00022718,4]
[330106735,1718992263081,-500.0,0.00022718,4]
[330106736,1718992263091,-500.0,0.00022718,4]
[330106737,1718992263100,-500.0,0.00022718,4]
[330106738,1718992263110,-1192.21,0.00022718,4]
[330106739,1718992263119,-500.0,0.00022718,4]
[330106740,1718992263129,-500.0,0.00022718,4]
[330106741,1718992263138,-170.84,0.00022718,4]
[330106742,1718992263147,-500.0,0.00022718,4]
[330106743,1718992263157,-500.0,0.00022718,4]
[330106744,1718992263166,-500.0,0.00022718,4]
[330106745,1718992263176,-500.0,0.00022718,4]
[330106746,1718992263186,-500.0,0.00022718,4]
[330106747,1718992263196,-500.0,0.00022718,4]
[330106748,1718992263206,-159.30477227,0.00022719,2]
[330106749,1718992263217,-500.0,0.00022725,4]
[330106750,1718992263227,-500.0,0.00022725,4]
[330106751,1718992263237,-500.0,0.00022725,4]
[330106752,1718992263247,-500.0,0.00022725,4]
[330106753,1718992263256,-500.0,0.00022725,4]
[330106754,1718992263265,-500.0,0.00022725,4]
[330106755,1718992263275,-500.0,0.00022725,4]
[330106756,1718992263284,-500.0,0.00022725,4]
[330106757,1718992263293,-500.0,0.00022725,4]
[330106758,1718992263303,-500.0,0.00022725,4]
[330106759,1718992263314,-166.33,0.00022725,4]
[330106760,1718992263323,-500.0,0.00022725,4]
[330106761,1718992263333,-500.0,0.00022725,4]
[330106762,1718992263343,-500.0,0.00022725,4]
[330106763,1718992263352,-500.0,0.00022725,4]
[330106764,1718992263361,-651.72,0.00022725,4]
[330106765,1718992263371,-500.0,0.00022725,4]
[330106766,1718992263380,-552.96,0.00022725,4]
[330106767,1718992263390,-553.99,0.00022725,4]
[330106768,1718992263400,-500.0,0.00022725,4]
[330106769,1718992263410,-500.0,0.00022725,4]
[330106770,1718992263419,-500.0,0.00022725,4]
[330106771,1718992263429,-1025.99,0.00022725,4]
[330106772,1718992263439,-500.0,0.00022725,4]
[330106773,1718992263449,-803.68,0.00022725,4]
[330106774,1718992263459,-500.0,0.00022725,4]
[330106775,1718992263468,-500.0,0.00022725,4]
[330106776,1718992263478,-500.0,0.00022725,4]
[330106777,1718992263488,-204.17010105,0.00022725,4]
[330106778,1718992263498,-500.0,0.00022725,4]
[330106779,1718992263507,-500.0,0.00022725,4]
[330106780,1718992263516,-500.0,0.00022725,4]
[330106781,1718992263525,-500.0,0.00022725,4]
[330106782,1718992263535,-500.0,0.00022725,4]
[330106783,1718992263544,-500.0,0.00022725,4]
[330106784,1718992263553,-500.0,0.00022725,4]
[330106785,1718992263562,-500.0,0.00022725,4]
[330106786,1718992263572,-500.0,0.00022725,4]
[330106787,1718992263586,-500.0,0.00022725,4]
[330106788,1718992263595,-508.15,0.00022725,4]
[330106789,1718992263604,-833.43,0.00022725,4]
[330106790,1718992263614,-500.0,0.00022725,4]
[330106791,1718992263623,-500.0,0.00022725,4]